[Event "1st Turkish League 2017"]
[Site "Konya"]
[Date "2017.07.23"]
[Round "9"]
[White "Dalgar, Hakki Berat"]
[Black "Isik, Alparslan"]
[Result "0-1"]
[ECO "B07"]
[WhiteElo "2171"]
[BlackElo "2211"]
[Annotator "NA"]
[PlyCount "153"]
[EventType "team-tourn"]
[EventCountry "TUR"]
[SourceTitle "playchess.com"]
[Source "ChessBase"]
[SourceQuality "1"]
[TimeControl "5400+30"]

1. d4 {[%emt 0:00:30]} g6 {[%emt 0:01:00]} 2. e4 {[%emt 0:00:30]} Bg7 {[%emt 0:00:30]} 3. Nf3 {[%emt 0:00:00]} d6 {[%emt 0:00:00]} 4. Bd3 {[%emt 0:00:00]} Nf6 {[%emt 0:00:00]} 5. O-O {[%emt 0:00:30]} O-O {[%emt 0:00:30]} 6. Nbd2 {[%emt 0:00:00]} c5 {[%emt 0:02:30]} 7. c3 {[%emt 0:00:00]} cxd4 {[%emt 0:08:30]} 8. cxd4 {[%emt 0:00:30]} Nc6 {[%emt 0:00:30] B07: Pirc Defence: Miscellaneous Systems} 9. Re1 {[%emt 0:00:30]} (9. h3 Nh5 10. Nb3 e5 11. Bg5 Qb6 12. d5 Nb4 13. Be3 Qd8 14. Bc4 a5 15. Nbd2 Bd7 16. a3 {½-½ (89) Fedoseev,V (2674)-Kokarev,D (2638) Sochi 2015}) 9... Bd7 {[%emt 0:03:30]} 10. a3 {[%emt 0:03:30]} Rc8 {[%emt 0:01:30]} 11. b4 {[%emt 0:01:30]} Nh5 {[%emt 0:02:30]} 12. Nb3 {[%emt 0:00:30]} Bg4 $146 {[%emt 0:02:30]} ({Predecessor:} 12... a6 13. Be3 Na7 14. Na5 b6 15. Nc4 Nb5 16. Rc1 {0-1 (38) Gonzalez Intelangelo,G (2203)-Todorcevic,M (2463) Las Palmas 2005}) 13. Be3 {[%emt 0:01:30]} e5 {[%emt 0:01:30]} 14. Be2 {[%emt 0:04:30]} Nf4 {[%emt 0:05:30]} 15. Bxf4 {[%emt 0:00:30]} exf4 {[%emt 0:00:30]} 16. Qd2 {[%emt 0:04:30]} Qf6 {[%emt 0:12:30]} 17. Rad1 {[%emt 0:01:30]} Bxf3 {[%emt 0:07:30]} 18. Bxf3 {[%emt 0:00:30]} b5 {[%emt 0:00:30]} 19. e5 {[%emt 0:08:30]} dxe5 {[%emt 0:01:30]} 20. Bxc6 {[%emt 0:00:30]} Qxc6 {[%emt 0:00:30]} 21. dxe5 {[%emt 0:00:30]} Qc3 {[%emt 0:07:30]} 22. Nc5 {[%emt 0:05:30]} Bxe5 {[%emt 0:05:30]} 23. Qe2 {[%emt 0:22:30]} Bg7 {[%emt 0:04:30]} 24. Qxb5 {[%emt 0:04:30]} Qxa3 {[%emt 0:02:30]} 25. Qc4 {[%emt 0:02:30]} (25. Rb1 $17 {keeps fighting.}) 25... a5 {[%emt 0:01:30]} 26. Qxf4 {[%emt 0:02:30]} Qxb4 {[%emt 0:01:30]} 27. Qxb4 {[%emt 0:02:30]} axb4 {[%emt 0:00:00]} 28. Nb3 {[%emt 0:03:30]} Bc3 $17 {[%emt 0:04:00]} 29. Re4 {[%emt 0:01:30]} Rfd8 {[%emt 0:00:30]} 30. Rb1 {[%emt 0:01:30]} Rd5 {[%emt 0:01:30]} 31. Kf1 {[%emt 0:00:30]} Ra8 {[%emt 0:00:30]} 32. Re2 {[%emt 0:09:45]} Rad8 {[%emt 0:00:30]} 33. Rc2 {[%emt 0:00:20]} Kf8 {[%emt 0:00:30]} 34. Rbc1 {[%emt 0:00:50]} Ke7 {[%emt 0:01:30]} 35. Ke2 {[%emt 0:00:10]} Kd6 {[%emt 0:00:30]} 36. Rxc3 {[%emt 0:00:45]} bxc3 {[%emt 0:00:30]} 37. Rxc3 {[%emt 0:00:05]} Re8+ {[%emt 0:00:30]} 38. Kf3 {[%emt 0:00:22]} Rf5+ {[%emt 0:02:30]} 39. Kg3 {[%emt 0:00:03]} Ke7 {[%emt 0:00:30]} 40. Nd4 {[%emt 0:00:52]} Rf6 {[%emt 0:00:30]} 41. Nf3 {[%emt 0:00:43]} Kf8 {[%emt 0:00:30]} 42. Rc2 {[%emt 0:00:18]} Kg7 {[%emt 0:00:30]} 43. Rd2 {[%emt 0:00:15]} Rfe6 {[%emt 0:00:30]} 44. Nd4 {[%emt 0:00:43]} Re4 {[%emt 0:00:30]} 45. f3 {[%emt 0:01:08]} R4e7 {[%emt 0:00:35]} 46. Nc6 {[%emt 0:00:23]} Rc7 {[%emt 0:00:51]} 47. Nd4 {[%emt 0:00:05]} Kg8 {[%emt 0:00:09]} 48. Ne2 {[%emt 0:00:27]} Rec8 {[%emt 0:01:00]} 49. Nf4 {[%emt 0:00:17]} Rc2 {[%emt 0:00:08]} 50. Rd5 {[%emt 0:00:30]} Ra2 {[%emt 0:00:36]} 51. Rd7 {[%emt 0:01:37]} Rcc2 {[%emt 0:01:03]} 52. Kg4 {[%emt 0:01:12]} Kg7 {[%emt 0:06:25]} 53. Rb7 {[%emt 0:02:39]} Ra6 {[%emt 0:02:25]} 54. h4 {[%emt 0:01:46]} h5+ {[%emt 0:01:36]} 55. Kg3 {[%emt 0:00:45]} Rac6 {[%emt 0:01:02]} 56. Rd7 {[%emt 0:00:36]} R2c4 {[%emt 0:00:32]} 57. Nh3 {[%emt 0:01:06]} Rc7 {[%emt 0:00:13]} 58. Rd6 {[%emt 0:00:00]} Ra4 {[%emt 0:01:37]} 59. Ng5 {[%emt 0:00:28]} Ra2 {[%emt 0:00:30]} 60. Nh3 {[%emt 0:00:12]} Rc4 {[%emt 0:00:18]} 61. Rd7 {[%emt 0:00:14]} Rc6 {[%emt 0:01:15]} 62. Ng5 {[%emt 0:03:14]} Rf6 {[%emt 0:00:30]} 63. Ne4 {[%emt 0:00:00]} Re6 {[%emt 0:00:30]} 64. Ng5 {[%emt 0:00:00]} Rf6 {[%emt 0:02:00]} 65. Ne4 {[%emt 0:00:09]} Rfa6 {[%emt 0:00:31]} 66. Ng5 {[%emt 0:01:04]} Ra7 {[%emt 0:00:30]} 67. Rd4 {[%emt 0:00:03]} R2a4 {[%emt 0:00:32]} 68. Rd6 {[%emt 0:00:20]} R4a6 {[%emt 0:00:15]} 69. Rd4 {[%emt 0:00:13]} Re7 {[%emt 0:01:16]} 70. Nh3 {[%emt 0:00:58]} Ra2 {[%emt 0:00:27]} 71. Nf4 {[%emt 0:01:31]} Rb7 {[%emt 0:00:35]} 72. Rc4 {[%emt 0:01:19]} Kh6 {[%emt 0:00:58]} 73. Nh3 {[%emt 0:02:04]} Rba7 {[%emt 0:00:59]} 74. Rb4 {[%emt 0:03:09]} R2a4 {[%emt 0:00:30]} 75. Rb5 {[%emt 0:00:00]} Rc4 {[%emt 0:00:06]} 76. Rb6 {[%emt 0:00:16]} Rca4 {[%emt 0:01:57]} 77. Rb5 {[%emt 0:00:30]} 0-1

[Event "1st Turkish League 2017"]
[Site "Konya"]
[Date "2017.07.23"]
[Round "9"]
[White "Salepci, Osman Firat"]
[Black "Daghan, Devran"]
[Result "1/2-1/2"]
[ECO "D42"]
[WhiteElo "2093"]
[BlackElo "2014"]
[Annotator "NA"]
[PlyCount "106"]
[EventType "team-tourn"]
[EventCountry "TUR"]
[SourceTitle "playchess.com"]
[Source "ChessBase"]
[SourceQuality "1"]
[TimeControl "5400+30"]

1. e4 {[%emt 0:00:30]} c5 {[%emt 0:01:00]} 2. c3 {[%emt 0:00:00]} Nc6 {[%emt 0:06:30]} 3. d4 {[%emt 0:00:00]} cxd4 {[%emt 0:00:30]} 4. cxd4 {[%emt 0:00:30]} d5 {[%emt 0:00:00]} 5. exd5 {[%emt 0:02:30]} Qxd5 {[%emt 0:00:00]} 6. Nf3 {[%emt 0:03:30]} e6 {[%emt 0:07:30]} 7. Nc3 {[%emt 0:02:30]} Qd8 {[%emt 0:00:30]} 8. Bd3 {[%emt 0:04:30]} Nf6 {[%emt 0:00:30]} 9. O-O {[%emt 0:00:00]} Be7 {[%emt 0:01:30]} 10. a3 {[%emt 0:04:00]} O-O {[%emt 0:00:30]} 11. Bg5 {[%emt 0:02:30]} h6 {[%emt 0:10:30]} 12. Be3 {[%emt 0:14:30]} b6 {[%emt 0:15:30]} 13. Qe2 {[%emt 0:05:30]} Bb7 {[%emt 0:01:30]} 14. Rad1 {[%emt 0:00:30]} Qc7 {[%emt 0:07:30]} 15. Bb1 {[%emt 0:15:30]} Rfd8 {[%emt 0:17:30]} 16. Nb5 {[%emt 0:15:30]} Qb8 {[%emt 0:10:52]} 17. Rfe1 {[%emt 0:12:00]} a6 {[%emt 0:09:46]} 18. Nc3 {[%emt 0:00:11]} Bf8 {[%emt 0:00:40]} 19. d5 {[%emt 0:05:09]} exd5 {[%emt 0:04:27]} 20. Bxb6 {[%emt 0:01:38]} Rd7 {[%emt 0:00:32]} 21. Qc2 {[%emt 0:03:36]} g6 {[%emt 0:00:45]} 22. Ba2 {[%emt 0:00:02]} Bg7 {[%emt 0:01:05]} 23. Nxd5 {[%emt 0:00:28]} Nxd5 {[%emt 0:00:30]} 24. Rxd5 {[%emt 0:05:55]} Nb4 {[%emt 0:00:27]} 25. Rxd7 {[%emt 0:00:07]} Nxc2 {[%emt 0:00:03]} 26. Bxf7+ {[%emt 0:00:48]} Kh8 {[%emt 0:00:13]} 27. Re8+ {[%emt 0:01:09]} Qxe8 {[%emt 0:00:30]} 28. Bxe8 {[%emt 0:00:30]} Bxf3 {[%emt 0:00:00]} 29. Bxg6 {[%emt 0:00:00]} Bg4 {[%emt 0:00:00]} 30. Rd2 {[%emt 0:00:40]} Na1 {[%emt 0:00:31]} 31. h3 {[%emt 0:00:39]} Be6 {[%emt 0:00:05]} 32. Rd6 {[%emt 0:00:16]} Bg8 {[%emt 0:00:46]} 33. f4 {[%emt 0:00:13]} Bh7 {[%emt 0:00:58]} 34. f5 {[%emt 0:00:59]} Bxg6 {[%emt 0:00:40]} 35. Rxg6 {[%emt 0:00:01]} Rf8 {[%emt 0:00:26]} 36. Be3 {[%emt 0:00:51]} Rf6 {[%emt 0:03:42]} 37. Rxf6 {[%emt 0:00:30]} Bxf6 {[%emt 0:00:30]} 38. Bxh6 {[%emt 0:00:30]} Bxb2 {[%emt 0:00:00]} 39. a4 {[%emt 0:00:00]} Nb3 {[%emt 0:00:00]} 40. Be3 {[%emt 0:00:00]} Kg7 {[%emt 0:00:19]} 41. Kf2 {[%emt 0:00:00]} Kf6 {[%emt 0:00:43]} 42. g4 {[%emt 0:00:00]} Ke5 {[%emt 0:01:40]} 43. Kf3 {[%emt 0:00:15]} Bc1 {[%emt 0:00:12]} 44. Bxc1 {[%emt 0:01:10]} Nxc1 {[%emt 0:00:30]} 45. Ke3 {[%emt 0:00:00]} a5 {[%emt 0:00:33]} 46. Kd2 {[%emt 0:00:45]} Nb3+ {[%emt 0:00:36]} 47. Kc3 {[%emt 0:00:30]} Nc5 {[%emt 0:00:30]} 48. Kc4 {[%emt 0:00:00]} Nxa4 {[%emt 0:00:00]} 49. Kb5 {[%emt 0:00:08]} Nc3+ {[%emt 0:00:26]} 50. Kxa5 {[%emt 0:00:30]} Ne4 {[%emt 0:00:00]} 51. Kb6 {[%emt 0:00:54]} Nf2 {[%emt 0:00:00]} 52. Kc7 {[%emt 0:00:00]} Nxh3 {[%emt 0:00:01]} 53. Kd7 {[%emt 0:00:21]} Nf2 {[%emt 0:00:00]} 1/2-1/2

[Event "1st Turkish League 2017"]
[Site "Konya"]
[Date "2017.07.23"]
[Round "9"]
[White "Korkmaz, Necmettin"]
[Black "Demir, Bilal"]
[Result "1/2-1/2"]
[ECO "C41"]
[WhiteElo "2078"]
[BlackElo "2069"]
[Annotator "NA"]
[PlyCount "63"]
[EventType "team-tourn"]
[EventCountry "TUR"]
[SourceTitle "playchess.com"]
[Source "ChessBase"]
[SourceQuality "1"]
[TimeControl "5400+30"]

1. e4 {[%emt 0:00:30]} d6 {[%emt 0:01:00]} 2. Nf3 {[%emt 0:00:30]} e5 {[%emt 0:00:30]} 3. d4 {[%emt 0:00:30]} exd4 {[%emt 0:00:30]} 4. Nxd4 {[%emt 0:00:30]} Nf6 {[%emt 0:00:30]} 5. Nc3 {[%emt 0:00:30]} Be7 {[%emt 0:00:00]} 6. g3 {[%emt 0:00:30]} d5 {[%emt 0:00:00]} 7. e5 {[%emt 0:00:30]} Ng4 {[%emt 0:00:30]} 8. Bg2 {[%emt 0:00:00]} O-O {[%emt 0:01:30]} 9. O-O {[%emt 0:08:00]} Nxe5 {[%emt 0:00:30]} 10. Nxd5 {[%emt 0:02:30]} Bc5 {[%emt 0:00:30]} 11. Bf4 {[%emt 0:02:30]} Bg4 {[%emt 0:07:30]} 12. Qe1 {[%emt 0:04:30]} Bxd4 {[%emt 0:23:30]} 13. Bxe5 {[%emt 0:00:30]} Re8 {[%emt 0:00:30]} 14. Bxc7 {[%emt 0:02:30]} Qd7 {[%emt 0:01:30]} 15. Qb4 {[%emt 0:04:30]} Nc6 {[%emt 0:04:30]} 16. Qxb7 {[%emt 0:00:30]} Rab8 {[%emt 0:07:30]} 17. Qa6 {[%emt 0:08:30]} Be2 {[%emt 0:07:30]} 18. Nf6+ {[%emt 0:05:30]} Bxf6 {[%emt 0:00:30]} 19. Qxc6 {[%emt 0:00:30]} Qxc6 {[%emt 0:04:30]} 20. Bxc6 {[%emt 0:00:00]} Bxf1 {[%emt 0:03:30]} 21. Kxf1 {[%emt 0:10:00]} Rxb2 {[%emt 0:02:30]} 22. Bxe8 {[%emt 0:11:30]} Rxc2 {[%emt 0:00:30]} 23. Rd1 {[%emt 0:15:30]} Rxc7 {[%emt 0:00:30]} 24. Rd7 {[%emt 0:00:00]} Rxd7 {[%emt 0:01:30]} 25. Bxd7 {[%emt 0:02:00]} Kf8 {[%emt 0:00:30]} 26. Ke2 {[%emt 0:00:30]} Ke7 {[%emt 0:00:00]} 27. Bb5 {[%emt 0:00:30]} Bd4 {[%emt 0:00:00]} 28. f4 {[%emt 0:00:30]} h5 {[%emt 0:00:30]} 29. Kf3 {[%emt 0:00:44]} f5 {[%emt 0:00:30]} 30. Bd3 {[%emt 0:01:12]} Kf6 {[%emt 0:00:30]} 31. Bb5 {[%emt 0:00:23]} g6 {[%emt 0:00:30]} 32. Bc4 {[%emt 0:00:00]} 1/2-1/2

[Event "1st Turkish League 2017"]
[Site "Konya"]
[Date "2017.07.23"]
[Round "9"]
[White "Gunduz, Umut Erdem"]
[Black "Kocak, Can"]
[Result "1-0"]
[ECO "B08"]
[WhiteElo "2066"]
[BlackElo "1976"]
[Annotator "NA"]
[PlyCount "55"]
[EventType "team-tourn"]
[EventCountry "TUR"]
[SourceTitle "playchess.com"]
[Source "ChessBase"]
[SourceQuality "1"]
[TimeControl "5400+30"]

1. e4 {[%emt 0:00:30]} d6 {[%emt 0:01:00]} 2. d4 {[%emt 0:00:30]} Nf6 {[%emt 0:00:30]} 3. Nc3 {[%emt 0:00:30]} g6 {[%emt 0:00:00]} 4. Nf3 {[%emt 0:01:30]} Bg7 $14 {[%emt 0:00:00]} 5. Bc4 {[%emt 0:01:30]} O-O {[%emt 0:00:00]} 6. Bb3 {[%emt 0:00:30]} c6 {[%emt 0:01:00]} 7. Qe2 {[%emt 0:00:30]} Bg4 {[%emt 0:03:30]} 8. h3 {[%emt 0:02:30]} Bxf3 {[%emt 0:00:30]} 9. Qxf3 {[%emt 0:00:30]} e5 {[%emt 0:00:30]} 10. dxe5 {[%emt 0:00:30]} dxe5 {[%emt 0:00:30]} 11. Be3 {[%emt 0:01:30]} Nbd7 {[%emt 0:00:30]} 12. g4 {[%emt 0:01:30]} Qe7 {[%emt 0:03:30]} 13. h4 {[%emt 0:01:30]} h5 {[%emt 0:01:30]} 14. gxh5 {[%emt 0:01:30]} Nxh5 {[%emt 0:00:00]} 15. Rg1 {[%emt 0:05:30]} Kh7 {[%emt 0:01:00]} 16. O-O-O {[%emt 0:01:30]} Bf6 {[%emt 0:13:30]} 17. Ne2 {[%emt 0:02:30]} Rh8 {[%emt 0:36:30]} 18. Ng3 {[%emt 0:05:30]} Nxg3 {[%emt 0:03:30]} 19. Rxg3 {[%emt 0:00:00]} Bxh4 {[%emt 0:01:30]} 20. Bxf7 {[%emt 0:12:00]} Bxg3 {[%emt 0:00:30]} 21. Bxg6+ {[%emt 0:00:00]} Kxg6 {[%emt 0:06:30]} 22. Qf5+ {[%emt 0:01:00]} Kg7 {[%emt 0:00:30]} 23. Rxd7 {[%emt 0:00:30]} Bh4 {[%emt 0:05:30]} 24. Bg5 {[%emt 0:01:30]} Qxd7 {[%emt 0:01:28]} 25. Qxd7+ {[%emt 0:00:00]} Kg6 {[%emt 0:05:01]} 26. Qf5+ {[%emt 0:00:00]} Kg7 {[%emt 0:00:28]} 27. Qf6+ {[%emt 0:00:00]} Kh7 {[%emt 0:01:00]} 28. Qf7# {[%emt 0:00:00]} 1-0

[Event "1st Turkish League 2017"]
[Site "Konya"]
[Date "2017.07.23"]
[Round "9"]
[White "Kucuk, Dogan"]
[Black "Erdogan, Anil Berk"]
[Result "0-1"]
[ECO "A32"]
[WhiteElo "2048"]
[BlackElo "2088"]
[Annotator "NA"]
[PlyCount "114"]
[EventType "team-tourn"]
[EventCountry "TUR"]
[SourceTitle "playchess.com"]
[Source "ChessBase"]
[SourceQuality "1"]
[TimeControl "5400+30"]

1. d4 {[%emt 0:00:30]} Nf6 {[%emt 0:01:00]} 2. Nf3 {[%emt 0:00:30]} c5 {[%emt 0:00:00]} 3. c4 {[%emt 0:01:30]} e6 {[%emt 0:01:00]} 4. Nc3 {[%emt 0:01:30]} cxd4 {[%emt 0:00:30]} 5. Nxd4 {[%emt 0:00:30]} d5 {[%emt 0:00:00]} 6. e3 {[%emt 0:02:30]} Be7 {[%emt 0:03:00] A32: Symmetrical English: 2 Nf3 Nf6 3 d4 cxd4 4 Nxd4 e6} (6... Nc6 7. cxd5 Nxd5 8. Nxc6 bxc6 9. Bd2 Be7 10. Qc2 O-O 11. Be2 Rb8 12. a3 Nxc3 13. Bxc3 Qb6 14. Bd3 h6 {1-0 (40) Nakamura,H (2787)-Carlsen,M (2853) chess.com INT 2016}) 7. cxd5 {[%emt 0:00:30]} Nxd5 {[%emt 0:03:30]} 8. Bb5+ {[%emt 0:01:30]} Bd7 {[%emt 0:01:30]} 9. Nxd5 {[%emt 0:04:30]} exd5 {[%emt 0:00:30]} 10. Bxd7+ {[%emt 0:15:30]} Qxd7 {[%emt 0:05:30]} 11. Bd2 {[%emt 0:01:30]} O-O {[%emt 0:08:30]} 12. O-O {[%emt 0:04:30]} Na6 $146 {[%emt 0:04:30]} ({Predecessor:} 12... Re8 13. Rc1 Bd6 14. Bc3 {0-1 (35) Roberts,D-Griffiths,B Cardiff 1994}) 13. Qf3 {[%emt 0:04:30]} Bf6 {[%emt 0:08:30]} 14. Bc3 {[%emt 0:02:30]} Nc5 {[%emt 0:04:30]} 15. Nf5 {[%emt 0:05:30]} Bxc3 {[%emt 0:04:30]} 16. bxc3 {[%emt 0:00:30]} g6 {[%emt 0:01:30]} 17. Ng3 {[%emt 0:15:30]} Rfd8 {[%emt 0:07:30]} 18. Rfd1 {[%emt 0:01:30]} Qe6 {[%emt 0:11:30]} 19. Rd4 {[%emt 0:02:30]} Rd7 {[%emt 0:09:30]} 20. Ne2 {[%emt 0:06:30]} Rad8 {[%emt 0:03:32]} 21. Rad1 $11 {[%emt 0:02:30]} Qc6 {[%emt 0:01:31]} 22. h4 {[%emt 0:04:57]} Ne4 {[%emt 0:04:50]} 23. h5 {[%emt 0:06:14]} Nxc3 {[%emt 0:05:20]} 24. Nxc3 {[%emt 0:01:01]} Qxc3 {[%emt 0:00:02]} 25. g3 {[%emt 0:04:50]} Qc6 {[%emt 0:01:54]} 26. Kg2 {[%emt 0:01:29]} g5 {[%emt 0:01:48]} 27. Qf5 {[%emt 0:02:27]} h6 {[%emt 0:00:16]} 28. Qd3 {[%emt 0:02:13]} Qe6 {[%emt 0:02:02]} 29. Qd2 {[%emt 0:00:35]} f5 {[%emt 0:02:23]} 30. f3 {[%emt 0:02:00]} Rc8 {[%emt 0:00:55]} 31. e4 {[%emt 0:00:43]} fxe4 {[%emt 0:02:27]} 32. fxe4 {[%emt 0:00:01]} Rf7 {[%emt 0:01:42]} 33. Qe2 {[%emt 0:01:50]} dxe4 {[%emt 0:00:35]} 34. Rxe4 {[%emt 0:00:47]} Qf5 {[%emt 0:00:35]} 35. Rd2 {[%emt 0:00:57]} Rcf8 {[%emt 0:00:32]} 36. Rd6 {[%emt 0:00:37]} Qf2+ {[%emt 0:00:50]} 37. Qxf2 {[%emt 0:00:30]} Rxf2+ {[%emt 0:00:00]} 38. Kh3 {[%emt 0:00:00]} R2f6 {[%emt 0:00:41]} 39. Rd7 {[%emt 0:00:30]} R6f7 {[%emt 0:00:25]} 40. Rd6 {[%emt 0:00:00]} Rf6 {[%emt 0:00:53]} 41. Rd7 {[%emt 0:00:28]} R8f7 {[%emt 0:00:00]} 42. Rd8+ {[%emt 0:00:23]} Kg7 {[%emt 0:00:00]} 43. Kg4 {[%emt 0:00:51]} Ra6 {[%emt 0:00:19]} 44. Ree8 {[%emt 0:00:06]} Ra4+ {[%emt 0:00:40]} 45. Kh3 {[%emt 0:00:04]} Rxa2 {[%emt 0:01:04]} 46. Rg8+ {[%emt 0:00:30]} Kf6 {[%emt 0:00:00]} 47. Rg6+ {[%emt 0:00:20]} Kf5 {[%emt 0:00:11]} 48. Rd1 {[%emt 0:00:05]} g4+ {[%emt 0:01:19]} 49. Rxg4 {[%emt 0:00:30]} Rh2+ {[%emt 0:00:30]} 50. Kxh2 {[%emt 0:00:30]} Kxg4 {[%emt 0:00:00]} 51. Rd4+ {[%emt 0:00:00]} Kxh5 {[%emt 0:00:00]} 52. Kh3 {[%emt 0:00:00]} Kg6 {[%emt 0:00:24]} 53. Rd6+ {[%emt 0:00:00]} Kg7 {[%emt 0:00:31]} 54. Kg4 {[%emt 0:00:20]} b5 {[%emt 0:00:30]} 55. Kh5 {[%emt 0:00:00]} Rb7 {[%emt 0:02:07]} 56. Rg6+ {[%emt 0:00:12]} Kf8 {[%emt 0:00:00]} 57. Rxh6 {[%emt 0:00:10]} b4 {[%emt 0:00:06]} 0-1

[Event "1st Turkish League 2017"]
[Site "Konya"]
[Date "2017.07.23"]
[Round "9"]
[White "Guncan, Berke"]
[Black "Gulbeyaz, Emir"]
[Result "1-0"]
[ECO "B06"]
[WhiteElo "2043"]
[BlackElo "1952"]
[Annotator "NA"]
[PlyCount "105"]
[EventType "team-tourn"]
[EventCountry "TUR"]
[SourceTitle "playchess.com"]
[Source "ChessBase"]
[SourceQuality "1"]
[TimeControl "5400+30"]

1. e4 {[%emt 0:00:30]} g6 {[%emt 0:02:00]} 2. d4 {[%emt 0:00:30]} Bg7 {[%emt 0:00:00]} 3. Nc3 {[%emt 0:01:30]} d6 {[%emt 0:01:00]} 4. f3 {[%emt 0:00:30]} e5 {[%emt 0:02:30]} 5. dxe5 {[%emt 0:07:30]} Bxe5 {[%emt 0:00:30]} 6. Be3 {[%emt 0:00:30]} Nc6 {[%emt 0:04:30]} 7. Bc4 {[%emt 0:03:30]} Nge7 {[%emt 0:00:30]} 8. Nge2 {[%emt 0:00:30]} O-O {[%emt 0:05:30]} 9. Qd2 {[%emt 0:02:30]} Na5 {[%emt 0:01:30]} 10. Bb3 {[%emt 0:01:30]} Nxb3 {[%emt 0:00:30]} 11. axb3 {[%emt 0:01:30]} f5 {[%emt 0:00:30]} 12. O-O-O {[%emt 0:01:30]} fxe4 $16 {[%emt 0:05:30]} 13. fxe4 {[%emt 0:05:30]} a5 {[%emt 0:07:30]} 14. Bd4 {[%emt 0:06:30]} Nc6 {[%emt 0:01:30]} 15. Bxe5 {[%emt 0:00:30]} Nxe5 {[%emt 0:00:30]} 16. Rdf1 {[%emt 0:05:30]} Kg7 {[%emt 0:08:30]} 17. Nf4 {[%emt 0:02:30]} Bd7 {[%emt 0:04:30]} 18. h4 {[%emt 0:06:30]} h5 {[%emt 0:00:30]} 19. Qd5 {[%emt 0:10:30]} Qe7 {[%emt 0:00:30]} 20. Qd4 {[%emt 0:00:30]} c6 {[%emt 0:01:30]} 21. Nd3 {[%emt 0:09:30]} Bg4 {[%emt 0:01:30]} 22. Nxe5 {[%emt 0:03:30]} Qxe5 {[%emt 0:05:30]} 23. Qb6 {[%emt 0:03:30]} Qe7 {[%emt 0:00:30]} 24. Qd4+ {[%emt 0:02:30]} Kh7 {[%emt 0:00:30]} 25. Nd1 {[%emt 0:00:30]} Qg7 {[%emt 0:10:30]} 26. Qxg7+ {[%emt 0:04:04]} Kxg7 {[%emt 0:00:30]} 27. Ne3 {[%emt 0:00:30]} Be6 {[%emt 0:00:30]} 28. Kd2 {[%emt 0:02:00]} a4 {[%emt 0:01:30]} 29. Rxf8 {[%emt 0:00:22]} Kxf8 {[%emt 0:01:30]} 30. Ra1 {[%emt 0:00:47]} b5 {[%emt 0:00:00]} 31. Ra3 {[%emt 0:00:41]} Ke7 {[%emt 0:00:00]} 32. Nd1 {[%emt 0:02:51]} Kf6 {[%emt 0:01:30]} 33. bxa4 {[%emt 0:01:25]} b4 {[%emt 0:02:30]} 34. Rf3+ {[%emt 0:02:21]} Ke5 {[%emt 0:01:30]} 35. b3 {[%emt 0:00:01]} c5 {[%emt 0:05:30]} 36. Nf2 {[%emt 0:02:00]} c4 {[%emt 0:00:30]} 37. Rg3 {[%emt 0:01:44]} Kd4 {[%emt 0:03:30]} 38. Rxg6 {[%emt 0:00:36]} cxb3 {[%emt 0:00:30]} 39. Rxe6 {[%emt 0:02:59]} b2 {[%emt 0:00:30]} 40. c3+ {[%emt 0:00:01]} bxc3+ {[%emt 0:01:30]} 41. Kc2 {[%emt 0:00:01]} Rg8 {[%emt 0:03:35]} 42. Rxd6+ {[%emt 0:00:28]} Kc4 {[%emt 0:00:30]} 43. Rc6+ {[%emt 0:01:12]} Kd4 {[%emt 0:00:17]} 44. Rd6+ {[%emt 0:01:22]} Kc4 {[%emt 0:00:18]} 45. Rd3 {[%emt 0:01:47]} Kb4 {[%emt 0:05:16]} 46. g3 {[%emt 0:02:15]} Rf8 {[%emt 0:01:09]} 47. Nd1 {[%emt 0:00:18]} Rf1 {[%emt 0:01:16]} 48. Nxc3 {[%emt 0:00:31]} Rf2+ {[%emt 0:00:33]} 49. Rd2 {[%emt 0:00:56]} Rf3 {[%emt 0:00:21]} 50. Kxb2 {[%emt 0:00:15]} Rxg3 {[%emt 0:00:11]} 51. e5 {[%emt 0:00:23]} Kc4 {[%emt 0:00:53]} 52. e6 {[%emt 0:00:17]} Rg7 {[%emt 0:01:03]} 53. Re2 {[%emt 0:00:11]} 1-0

[Event "1st Turkish League 2017"]
[Site "Konya"]
[Date "2017.07.23"]
[Round "9"]
[White "Karacan, Can Berk"]
[Black "Eldemir, Goksu"]
[Result "0-1"]
[ECO "B84"]
[WhiteElo "2009"]
[BlackElo "1862"]
[Annotator "NA"]
[PlyCount "50"]
[EventType "team-tourn"]
[EventCountry "TUR"]
[SourceTitle "playchess.com"]
[Source "ChessBase"]
[SourceQuality "1"]
[TimeControl "5400+30"]

1. e4 {[%emt 0:00:30]} c5 {[%emt 0:01:00]} 2. Nf3 {[%emt 0:00:00]} d6 {[%emt 0:00:30]} 3. d4 {[%emt 0:00:00]} cxd4 {[%emt 0:00:30]} 4. Nxd4 {[%emt 0:00:00]} Nf6 {[%emt 0:00:30]} 5. Nc3 {[%emt 0:00:00]} a6 {[%emt 0:00:30] LiveBook: 60561 Games} 6. Be3 {[%emt 0:03:30]} e6 {[%emt 0:00:30]} 7. Be2 {[%emt 0:01:30]} Nbd7 {[%emt 0:02:30]} 8. O-O {[%emt 0:00:30]} b5 {[%emt 0:00:30]} 9. f4 {[%emt 0:20:30] B84: Sicilian Scheveningen: 6 Be2 a6, lines without early Be3} (9. a3 Bb7 10. Bd3 Be7 11. Qf3 O-O 12. Qg3 Nc5 13. Bh6 Ne8 14. Bd2 Rc8 15. Rad1 Qc7 16. Rfe1 Nxd3 17. cxd3 Kh8 {0-1 (71) Sevian,S (2556)-Huschenbeth,N (2541) Las Vegas 2015}) 9... b4 $146 {[%emt 0:14:30]} ({Predecessor:} 9... Bb7 10. Bf3 b4 11. e5 Bxf3 12. Qxf3 bxc3 13. exf6 Nxf6 14. Qc6+ Nd7 15. f5 Qc8 16. fxe6 fxe6 {1-0 (39) Sredojevic,I (2416)-Zivkovic,N (2131) Vrnjacka Banja 2009}) 10. Nc6 {[%emt 0:13:30]} Qc7 {[%emt 0:02:30]} 11. Nxb4 {[%emt 0:05:30]} d5 {[%emt 0:00:30]} 12. Nbxd5 {[%emt 0:05:30]} exd5 {[%emt 0:00:30]} 13. e5 {[%emt 0:00:00]} Bc5 {[%emt 0:04:30]} 14. Qd3 {[%emt 0:23:00]} Qa7 {[%emt 0:25:30]} 15. Rf3 {[%emt 0:14:10]} d4 {[%emt 0:09:30]} 16. exf6 {[%emt 0:02:45]} Nxf6 $11 {[%emt 0:03:30]} 17. Ne4 {[%emt 0:04:08]} dxe3 {[%emt 0:00:00]} 18. Rd1 {[%emt 0:01:45]} Bg4 {[%emt 0:03:00]} 19. Nxf6+ {[%emt 0:01:57]} gxf6 {[%emt 0:00:30]} 20. Qe4+ {[%emt 0:00:00]} Kf8 {[%emt 0:00:30]} 21. Kh1 {[%emt 0:00:37]} Bxf3 {[%emt 0:02:30]} 22. Bxf3 {[%emt 0:00:30]} Re8 {[%emt 0:07:30]} 23. Qf5 {[%emt 0:00:31]} e2 {[%emt 0:07:02]} 24. Bxe2 {[%emt 0:00:04]} Rxe2 {[%emt 0:00:00]} 25. Rd8+ {[%emt 0:00:30]} Ke7 0-1